fUSD/lending_fUSD_20250530
["ID","MTS","AMOUNT","RATE_DAILY","PERIOD"]
[363233145,1748634644810,-151.0,0.00022,7]
[363233146,1748634644819,-151.0,0.00022,7]
[363233147,1748634644829,-5356.375765,0.00022,7]
[363233148,1748634644839,-151.0,0.00022,7]
[363233149,1748634644848,-5356.375765,0.00022,7]
[363233150,1748634644858,-151.0,0.00022,2]
[363233151,1748634644868,-260.0,0.00022,2]
[363233152,1748634644877,-151.0,0.00022,7]
[363233153,1748634644887,-151.0,0.00022,7]
[363233154,1748634644897,-361.393696,0.00022,7]
[363233155,1748634644908,-361.393696,0.00022,7]
[363233156,1748634644918,-164.0,0.00022,2]
[363233157,1748634644928,-205.0,0.00022007,3]
[363233158,1748634644938,-1000.0,0.00022054,2]
[363233159,1748634644948,-1000.0,0.00022054,2]
[363233160,1748634644958,-1000.0,0.00022054,2]
[363233161,1748634644967,-1000.0,0.00022054,2]
[363233162,1748634644976,-1000.0,0.00022054,2]
[363233163,1748634644986,-1000.0,0.00022054,2]
[363233164,1748634644995,-1000.0,0.00022054,2]
[363233165,1748634645005,-1000.0,0.00022054,2]
[363233166,1748634645015,-1000.0,0.00022054,2]
[363233167,1748634645024,-1000.0,0.00022054,2]
[363233168,1748634645034,-151.0,0.00022059,7]
[363233169,1748634645043,-151.0,0.00022059,7]
[363233170,1748634645053,-151.0,0.00022059,7]
[363233171,1748634645065,-151.0,0.00022059,7]
[363233172,1748634645075,-151.0,0.00022059,7]
[363233173,1748634645084,-151.0,0.00022059,7]
[363233174,1748634645094,-151.0,0.00022059,7]
[363233175,1748634645103,-1000.0,0.00022059,7]
[363233176,1748634645113,-1000.0,0.00022059,7]
[363233177,1748634645123,-1000.0,0.00022059,7]
[363233178,1748634645132,-1000.0,0.00022059,7]
[363233179,1748634645142,-1000.0,0.00022059,7]
[363233180,1748634645151,-1000.0,0.00022059,7]
[363233181,1748634645161,-1000.0,0.00022059,7]
[363233182,1748634645170,-1000.0,0.00022059,7]
[363233183,1748634645180,-1000.0,0.00022059,7]
[363233184,1748634645190,-1000.0,0.00022059,7]
[363233185,1748634645200,-232.8541541,0.0002211,2]
[363233186,1748634645210,-151.0,0.00022156,7]
[363233187,1748634645219,-151.0,0.00022156,7]
[363233188,1748634645229,-151.0,0.00022156,7]
[363233189,1748634645239,-151.0,0.00022156,7]
[363233190,1748634645249,-151.0,0.00022156,7]
[363233191,1748634645258,-1906.96671968,0.00022164,2]
[363233192,1748634645268,-151.0,0.00022168,7]
[363233193,1748634645280,-151.0,0.00022168,7]
[363233194,1748634645290,-151.0,0.00022168,7]
[363233195,1748634645300,-151.0,0.00022168,7]
[363233196,1748634645310,-151.0,0.00022168,7]
[363233197,1748634645319,-151.0,0.00022168,7]
[363233198,1748634645328,-151.0,0.00022168,7]
[363233199,1748634645338,-151.0,0.00022168,7]
[363233200,1748634645348,-1500.0,0.00022168,2]
[363233201,1748634645358,-1500.0,0.00022168,2]
[363233202,1748634645368,-1500.0,0.00022168,2]
[363233203,1748634645378,-1500.0,0.00022168,2]
[363233204,1748634645388,-6989.40219899,0.00022176,6]
[363233205,1748634645398,-151.0,0.00022192,7]
[363233206,1748634645408,-260.0,0.00022192,7]
[363233207,1748634645417,-1000.0,0.00022192,2]
[363233208,1748634645426,-164.81,0.00022204,2]
[363233209,1748634645435,-500.0,0.00022222,2]
[363233210,1748634645445,-151.0,0.00022233,7]
[363233211,1748634645455,-151.0,0.00022233,7]
[363233212,1748634645464,-151.0,0.00022233,7]
[363233213,1748634645474,-151.0,0.00022233,7]
[363233214,1748634645484,-151.0,0.00022233,7]
[363233215,1748634645494,-151.0,0.00022233,7]
[363233216,1748634645503,-181.08010149,0.00022249,2]
[363233217,1748634645513,-3787.70120446,0.000223,2]
[363233218,1748634645522,-166.13,0.00022419,2]
[363233219,1748634645532,-5348.85073308,0.000225,2]
[363233220,1748634645541,-151.0,0.000225,7]
[363233221,1748634645550,-151.0,0.000225,7]
[363233222,1748634645560,-151.0,0.000225,7]
[363233223,1748634645569,-1000.0,0.0002256,2]
[363233224,1748634645579,-151.756955,0.00022616,7]
[363233225,1748634645589,-151.0,0.00022616,7]
[363233226,1748634645598,-151.0,0.00022616,7]
[363233227,1748634645609,-506.98039416,0.0002271,2]
[363233228,1748634645619,-1331.27648321,0.00022716,2]
[363233229,1748634645628,-2000.0,0.00022716,2]
[363233230,1748634645638,-334.08393763,0.00022716,2]
[363233231,1748634645648,-2000.0,0.00022716,2]
[363233232,1748634645658,-245.46,0.00022739,2]
[363233233,1748634645667,-323.33227364,0.0002274,2]
[363233234,1748634645676,-187.78006525,0.00022797,2]
[363233235,1748634645686,-8018.17298592,0.00022914,2]
[363233236,1748634645696,-6989.40219899,0.00022934,8]
[363233237,1748634645705,-291.67350322,0.00023,7]
[363233238,1748634645714,-550.0,0.00023,14]
[363233239,1748634645724,-450.0,0.00023,2]
[363233240,1748634645733,-200.0,0.00023,2]
[363233242,1748634645922,-4000.0,0.00023,4]
[363233243,1748634645938,-260.0,0.00023014,7]
[363233244,1748634645948,-151.0,0.00023014,7]
[363233245,1748634645958,-742.59117954,0.00023067,2]
[363233246,1748634645967,-205.0,0.00023158,5]
[363233247,1748634645976,-800.0,0.00023177,8]
[363233248,1748634645986,-800.0,0.00023177,8]
[363233249,1748634645995,-800.0,0.00023177,8]
[363233250,1748634646004,-800.0,0.00023177,8]
[363233251,1748634646014,-800.0,0.00023177,8]
[363233252,1748634646025,-800.0,0.00023177,8]
[363233253,1748634646035,-800.0,0.00023177,8]
[363233254,1748634646044,-800.0,0.00023177,8]
[363233255,1748634646054,-800.0,0.00023177,8]
[363233256,1748634646063,-520.75176023,0.00023177,8]
[363233257,1748634646073,-50072.98794455,0.000232,2]
[363233258,1748634646083,-151.0,0.000232,7]
[363233259,1748634646093,-151.0,0.000232,7]
[363233260,1748634646102,-151.0,0.000232,7]
[363233261,1748634646112,-153.235469,0.000232,7]
[363233262,1748634646121,-837.362934,0.000232,7]
[363233263,1748634646132,-837.362934,0.000232,7]
[363233264,1748634646142,-151.0,0.000232,7]
[363233265,1748634646152,-151.0,0.000232,7]
[363233266,1748634646161,-151.0,0.000232,7]
[363233267,1748634646171,-151.0,0.000232,7]
[363233268,1748634646181,-151.0,0.000232,7]
[363233269,1748634646191,-151.0,0.000232,7]
[363233270,1748634646201,-151.0,0.000232,7]
[363233271,1748634646211,-151.0,0.000232,7]
[363233272,1748634646220,-151.0,0.000232,7]
[363233273,1748634646230,-151.0,0.000232,7]
[363233274,1748634646240,-800.0,0.00023232,8]
[363233275,1748634646250,-800.0,0.00023232,8]
[363233276,1748634646260,-800.0,0.00023232,8]
[363233277,1748634646270,-800.0,0.00023232,8]
[363233278,1748634646286,-800.0,0.00023232,8]
[363233279,1748634646296,-800.0,0.00023232,8]
[363233280,1748634646306,-800.0,0.00023232,8]
[363233281,1748634646316,-800.0,0.00023232,8]
[363233282,1748634646327,-800.0,0.00023232,8]
[363233283,1748634646337,-800.0,0.00023232,8]
[363233285,1748634646347,-2500.0,0.00023264,2]
[363233287,1748634646357,-506.05116022,0.00023264,2]
[363233288,1748634646367,-194.72792766,0.00023345,2]
[363233290,1748634646379,-1000.0,0.00023347,2]
[363233293,1748634646389,-2351.0,0.00023386,2]
[363233295,1748634646399,-231.02300226,0.00023456,2]
[363233298,1748634646409,-301.46,0.000235,2]
[363233300,1748634646418,-302.34,0.000235,2]
[363233302,1748634646428,-303.83,0.000235,2]
[363233304,1748634646437,-304.51,0.000235,2]
[363233306,1748634646449,-303.05,0.000235,2]
[363233308,1748634646459,-304.31,0.000235,2]
[363233309,1748634646471,-302.01,0.000235,2]
[363233310,1748634646481,-303.21,0.000235,2]
[363233311,1748634646491,-300.57,0.000235,2]
[363233312,1748634646501,-302.55,0.000235,2]
[363233313,1748634646511,-303.92,0.000235,2]
[363233314,1748634646521,-301.52,0.000235,2]
[363233315,1748634646531,-300.91,0.000235,2]
[363233316,1748634646540,-303.9,0.000235,2]
[363233317,1748634646550,-305.0,0.000235,2]
[363233318,1748634646559,-305.04,0.000235,2]
[363233319,1748634646569,-305.12,0.000235,2]
[363233320,1748634646578,-9415.46,0.000235,7]
[363233321,1748634646587,-186547.15449485,0.000235,7]
[363233329,1748634647361,150.0,0.00018928,2]
[363233330,1748634647396,-384.47178802,0.000235,7]
[363233331,1748634647508,-122.38489353,0.000235,7]
[363233332,1748634648489,-24680.01460069,0.00020061,2]
[363233333,1748634648499,-75974.5488236,0.000235,7]
[363233334,1748634648509,-151.0,0.000235,7]
[363233335,1748634648518,-151.0,0.000235,7]
[363233336,1748634648528,-163.304967,0.000235,7]
[363233337,1748634648537,-163.304967,0.000235,7]
[363233338,1748634648547,-152.958323,0.000235,7]
[363233339,1748634648557,-849.75575,0.000235,7]
[363233340,1748634648567,-151.0,0.000235,7]
[363233341,1748634648576,-151.0,0.000235,7]
[363233342,1748634648585,-151.0,0.000235,7]
[363233343,1748634648595,-186.338307,0.000235,7]
[363233344,1748634648604,-186.338307,0.000235,7]
[363233345,1748634648613,-151.0,0.000235,7]
[363233346,1748634648622,-151.0,0.000235,7]
[363233347,1748634648632,-151.0,0.000235,7]
[363233348,1748634648641,-151.0,0.000235,7]
[363233349,1748634648650,-151.0,0.000235,7]
[363233350,1748634648659,-151.0,0.000235,7]
[363233351,1748634648669,-220.947744,0.000235,7]
[363233352,1748634648679,-154.460828,0.000235,7]
[363233353,1748634648689,-151.0,0.000235,7]
[363233354,1748634648698,-157.291095,0.000235,7]
[363233355,1748634648707,-216.355224,0.000235,7]
[363233356,1748634648716,-151.0,0.000235,7]
[363233357,1748634648726,-151.0,0.000235,7]
[363233358,1748634648736,-151.0,0.000235,7]
[363233359,1748634648745,-151.0,0.000235,7]
[363233360,1748634648754,-223.904983,0.000235,7]
[363233361,1748634648764,-151.0,0.000235,7]
[363233362,1748634648773,-151.0,0.000235,7]
[363233363,1748634648784,-151.0,0.000235,7]
[363233364,1748634648794,-151.0,0.000235,7]
[363233365,1748634648803,-151.0,0.000235,7]
[363233366,1748634648817,-272.320063,0.000235,7]
[363233367,1748634648827,-272.320063,0.000235,7]
[363233368,1748634648836,-151.0,0.000235,7]
[363233369,1748634648846,-151.0,0.000235,7]
[363233370,1748634648856,-151.0,0.000235,7]
[363233371,1748634648865,-1739.178541,0.000235,7]
[363233372,1748634648874,-1739.178541,0.000235,7]
[363233373,1748634648884,-151.0,0.000235,7]
[363233374,1748634648894,-151.0,0.000235,7]
[363233375,1748634648904,-151.0,0.000235,7]
[363233376,1748634648914,-277.43062,0.000235,7]
[363233377,1748634648923,-5356.375765,0.000235,7]
[363233378,1748634648934,-151.0,0.000235,7]
[363233379,1748634648944,-5356.375765,0.000235,7]
[363233380,1748634648955,-151.0,0.000235,7]
[363233381,1748634648965,-151.0,0.000235,7]
[363233382,1748634648975,-361.393696,0.000235,7]
[363233383,1748634648985,-361.393696,0.000235,7]
[363233384,1748634648995,-151.0,0.000235,7]
[363233385,1748634649005,-151.0,0.000235,7]
[363233386,1748634649015,-151.0,0.000235,7]
[363233387,1748634649025,-241.51136,0.000235,7]
[363233388,1748634649036,-151.0,0.000235,7]
[363233389,1748634649046,-1406.47,0.00023563,2]
[363233390,1748634649056,-6989.40219899,0.00023693,9]
[363233391,1748634649067,-304.94,0.000237,2]
[363233392,1748634649078,-200.200163,0.000237,2]
[363233393,1748634649087,-200.0,0.00023757,2]
[363233394,1748634649097,-1269.99,0.0002378,2]
[363233395,1748634649107,-164.81,0.0002379,2]
[363233396,1748634649117,-3000.0,0.00023812,2]
[363233397,1748634649128,-1101.47,0.00023836,2]
[363233398,1748634649138,-201.93286099,0.00023893,2]
[363233399,1748634649148,-1600.0,0.000239,8]
[363233400,1748634649158,-1000.0,0.00023907,2]
[363233401,1748634649168,-151.0,0.00023999,7]
[363233402,1748634649178,-151.0,0.00023999,7]
[363233403,1748634649188,-151.0,0.00023999,7]
[363233404,1748634649199,-151.0,0.00023999,7]
[363233405,1748634649208,-151.0,0.00023999,7]
[363233406,1748634649219,-177.831976,0.00023999,7]
[363233407,1748634649229,-284.053244,0.00023999,7]
[363233408,1748634649240,-151.0,0.00023999,7]
[363233409,1748634649250,-215.345119,0.00023999,7]
[363233410,1748634649260,-151.0,0.00023999,7]
[363233411,1748634649270,-151.0,0.00023999,7]
[363233412,1748634649281,-1739.178541,0.00023999,7]
[363233413,1748634649292,-1739.178541,0.00023999,7]
[363233414,1748634649302,-151.0,0.00023999,7]
[363233415,1748634649313,-151.0,0.00023999,7]
[363233416,1748634649324,-151.0,0.00023999,7]
[363233417,1748634649334,-151.0,0.00023999,7]
[363233418,1748634649344,-5356.375765,0.00023999,7]
[363233419,1748634649354,-151.0,0.00023999,7]
[363233420,1748634649367,-5356.375765,0.00023999,7]
[363233421,1748634649378,-151.0,0.00023999,7]
[363233422,1748634649388,-300.24,0.00023999,2]
[363233423,1748634649398,-303.68,0.00023999,2]
[363233424,1748634649409,-302.06,0.00023999,2]
[363233425,1748634649419,-301.56,0.00023999,2]
[363233426,1748634649429,-265398.76141599,0.00024,2]
[363233427,1748634649439,-199.34424796,0.00024,2]
[363233428,1748634649449,-305.64,0.00024,2]
[363233429,1748634649459,-305.69,0.00024,2]
[363233430,1748634649469,-305.87,0.00024,2]
[363233431,1748634649479,-303.54,0.00024,2]
[363233432,1748634649490,-60295.38626899,0.00024,2]
[363233433,1748634649499,-151.0,0.00024,7]
[363233434,1748634649509,-151.0,0.00024,7]
[363233435,1748634649519,-151.0,0.00024,7]
[363233436,1748634649528,-151.0,0.00024,7]
[363233437,1748634649538,-837.362934,0.00024,7]
[363233438,1748634649548,-151.0,0.00024,7]
[363233439,1748634649558,-837.362934,0.00024,7]
[363233440,1748634649568,-249.12664,0.00024,7]
[363233441,1748634649577,-151.0,0.00024,7]
[363233442,1748634649586,-151.0,0.00024,7]
[363233443,1748634649596,-151.690694,0.00024,7]
[363233444,1748634649605,-151.0,0.00024,7]
[363233445,1748634649615,-151.0,0.00024,7]
[363233446,1748634649625,-151.0,0.00024,7]
[363233447,1748634649635,-151.0,0.00024,7]
[363233448,1748634649644,-151.0,0.00024,7]
[363233449,1748634649654,-151.0,0.00024,7]
[363233450,1748634649663,-151.0,0.00024,7]
[363233451,1748634649672,-272.320063,0.00024,7]
[363233452,1748634649682,-272.320063,0.00024,7]
[363233453,1748634649691,-245.46,0.00024109,2]
[363233454,1748634649702,-1000.0,0.00024134,2]
[363233455,1748634649712,-153.0,0.00024164,7]
[363233456,1748634649722,-267.0,0.00024164,7]
[363233457,1748634649731,-500.0,0.00024192,2]
[363233458,1748634649740,-1314.0,0.00024197,2]
[363233459,1748634649750,-154.791,0.00024197,2]
[363233460,1748634649759,-941.0,0.00024197,2]
[363233461,1748634649769,-634.0,0.00024197,2]
[363233462,1748634649779,-810.0,0.00024197,2]
[363233463,1748634649789,-1268.0,0.00024197,2]
[363233464,1748634649799,-588.0,0.00024197,2]
[363233465,1748634649809,-924.0,0.00024197,2]
[363233466,1748634649819,-556.0,0.00024197,2]
[363233467,1748634649829,-1466.0,0.00024197,2]
[363233468,1748634649841,-361.393696,0.00024197,7]
[363233469,1748634649851,-361.393696,0.00024197,7]
[363233470,1748634649862,-151.0,0.00024197,7]
[363233471,1748634649872,-2190.0,0.00024197,2]
[363233472,1748634649888,-4068.0,0.00024197,2]
[363233473,1748634649901,-282.231,0.00024197,2]
[363233474,1748634649911,-284.369,0.00024197,2]
[363233475,1748634649922,-6929.0,0.00024197,2]
[363233476,1748634649932,-886.398,0.00024197,2]
[363233477,1748634649942,-848.0,0.00024197,2]
[363233478,1748634649953,-408.71752526,0.0002421,2]
[363233479,1748634649964,-3582.2501632,0.0002421,2]
[363233480,1748634649976,-425.7526,0.00024299,2]
[363233481,1748634649988,-205.0,0.0002431,7]
[363233482,1748634649999,-1023.68454568,0.00024333,2]
[363233483,1748634650008,-361.17880087,0.0002436,2]
[363233484,1748634650018,-667.85,0.00024422,2]
[363233485,1748634650031,-209.40437684,0.00024441,2]
[363233486,1748634650041,-6989.40219899,0.00024452,11]
[363233487,1748634650051,-1067.17750031,0.000245,2]
[363233488,1748634650061,-1108.61900222,0.000245,2]
[363233489,1748634650072,-1137.93705922,0.000245,2]
[363233490,1748634650083,-1026.18436626,0.000245,2]
[363233491,1748634650093,-1075.24409007,0.000245,2]
[363233492,1748634650104,-1005.37548847,0.000245,2]
[363233493,1748634650114,-1056.69519175,0.000245,2]
[363233494,1748634650124,-1099.77442151,0.000245,2]
[363233495,1748634650135,-165.39,0.0002454,2]
[363233496,1748634650146,-151.0,0.00024565,2]
[363233497,1748634650157,-207.4,0.00024565,2]
[363233498,1748634650167,-156.0,0.00024565,2]
[363233499,1748634650178,-9216.856,0.00024565,2]
[363233500,1748634650188,-151.0,0.00024565,2]
[363233501,1748634650199,-300.0,0.00024565,2]
[363233502,1748634650209,-300.0,0.00024565,2]
[363233503,1748634650219,-300.0,0.00024565,2]
[363233504,1748634650229,-300.0,0.00024565,2]
[363233505,1748634650240,-300.0,0.00024565,2]
[363233506,1748634650250,-300.0,0.00024565,2]
[363233507,1748634650260,-668.65185757,0.00024565,2]
[363233508,1748634650271,-300.0,0.00024565,2]
[363233509,1748634650287,-300.0,0.00024565,2]
[363233510,1748634650297,-300.0,0.00024565,2]
[363233511,1748634650307,-300.0,0.00024565,2]
[363233512,1748634650317,-300.0,0.00024565,2]
[363233513,1748634650327,-300.0,0.00024565,2]
[363233514,1748634650337,-300.0,0.00024565,2]
[363233515,1748634650347,-300.0,0.00024565,2]
[363233516,1748634650359,-300.0,0.00024565,2]
[363233517,1748634650368,-300.0,0.00024565,2]
[363233518,1748634650377,-300.0,0.00024565,2]
[363233519,1748634650387,-300.0,0.00024565,2]
[363233520,1748634650402,-300.0,0.00024565,2]
[363233521,1748634650419,-300.0,0.00024565,2]
[363233522,1748634650430,-300.0,0.00024565,2]
[363233523,1748634650441,-300.0,0.00024565,2]
[363233524,1748634650452,-300.0,0.00024565,2]
[363233525,1748634650462,-300.0,0.00024565,2]
[363233526,1748634650472,-300.0,0.00024565,2]
[363233527,1748634650483,-300.0,0.00024565,2]
[363233528,1748634650492,-300.0,0.00024565,2]
[363233529,1748634650502,-300.0,0.00024565,2]
[363233530,1748634650512,-300.0,0.00024565,2]
[363233531,1748634650522,-151.0,0.00024565,2]
[363233532,1748634650532,-300.0,0.00024565,2]
[363233533,1748634650542,-151.0,0.00024565,2]
[363233534,1748634650552,-1115.157653,0.00024565,2]
[363233535,1748634650561,-9557.879672,0.0002462,2]
[363233536,1748634650572,-522.68534186,0.00024657,30]
[363233537,1748634650582,-150.0,0.00024658,2]
[363233538,1748634650592,-166.66,0.00024658,2]
[363233539,1748634650602,-151.0,0.00024658,7]
[363233540,1748634650613,-152.56723,0.00024658,7]
[363233541,1748634650623,-1000.0,0.00024658,2]
[363233542,1748634650635,-9911.52121986,0.00024675,2]
[363233543,1748634650646,-6052.7169176,0.0002473,2]
[363233544,1748634650657,-700.0,0.0002477,2]
[363233545,1748634650667,-500.0,0.0002477,2]
[363233546,1748634650678,-1478.23623147,0.0002479,2]
[363233547,1748634650689,-270.39681993,0.00024797,4]
[363233548,1748634650700,-300.0,0.00024799,10]
[363233549,1748634650711,-300.0,0.00024799,10]
[363233550,1748634650721,-300.0,0.00024799,10]
[363233551,1748634650731,-300.0,0.00024799,10]
[363233552,1748634650741,-300.0,0.00024799,10]
[363233553,1748634650755,-9415.46,0.000248,7]
[363233554,1748634650768,-151.0,0.000248,7]
[363233555,1748634650783,-151.0,0.000248,7]
[363233556,1748634650795,-151.0,0.000248,7]
[363233557,1748634650804,-151.0,0.000248,7]
[363233558,1748634650815,-151.0,0.000248,7]
[363233559,1748634650825,-152.493386,0.000248,7]
[363233560,1748634650836,-151.0,0.000248,7]
[363233561,1748634650846,-151.0,0.000248,7]
[363233562,1748634650856,-151.0,0.000248,7]
[363233563,1748634650868,-151.0,0.000248,7]
[363233564,1748634650879,-151.0,0.000248,7]
[363233565,1748634650890,-151.0,0.000248,7]
[363233566,1748634650901,-263.111376,0.000248,7]
[363233567,1748634650910,-263.111376,0.000248,7]
[363233568,1748634650920,-151.0,0.000248,7]
[363233569,1748634650929,-166.489499,0.000248,7]
[363233570,1748634650939,-151.0,0.000248,7]
[363233571,1748634650952,-151.0,0.000248,7]
[363233572,1748634650965,-163.304967,0.000248,7]
[363233573,1748634650976,-163.304967,0.000248,7]
[363233574,1748634650987,-163.304967,0.000248,7]
[363233575,1748634650997,-163.304967,0.000248,7]
[363233576,1748634651007,-151.0,0.000248,7]
[363233577,1748634651017,-849.75575,0.000248,7]
[363233578,1748634651027,-849.75575,0.000248,7]
[363233579,1748634651037,-151.0,0.000248,7]
[363233580,1748634651047,-151.0,0.000248,7]
[363233581,1748634651057,-223.608957,0.000248,7]
[363233582,1748634651067,-186.338307,0.000248,7]
[363233583,1748634651077,-186.338307,0.000248,7]
[363233584,1748634651087,-186.338307,0.000248,7]
[363233585,1748634651097,-186.338307,0.000248,7]
[363233586,1748634651107,-837.362934,0.000248,7]
[363233587,1748634651117,-161.899212,0.000248,7]
[363233588,1748634651127,-837.362934,0.000248,7]
[363233589,1748634651138,-151.0,0.000248,7]
[363233590,1748634651148,-151.0,0.000248,7]
[363233591,1748634651158,-151.0,0.000248,7]
[363233592,1748634651168,-151.0,0.000248,7]
[363233593,1748634651179,-151.0,0.000248,7]
[363233594,1748634651189,-151.0,0.000248,7]
[363233595,1748634651199,-151.0,0.000248,7]
[363233596,1748634651209,-151.0,0.000248,7]
[363233597,1748634651219,-151.0,0.000248,7]
[363233598,1748634651230,-151.0,0.000248,7]
[363233599,1748634651240,-151.0,0.000248,7]
[363233600,1748634651251,-151.0,0.000248,7]
[363233601,1748634651261,-151.0,0.000248,7]
[363233602,1748634651272,-151.0,0.000248,7]
[363233603,1748634651285,-211.581283,0.000248,7]
[363233604,1748634651295,-151.0,0.000248,7]
[363233605,1748634651306,-151.0,0.000248,7]
[363233606,1748634651316,-151.0,0.000248,7]
[363233607,1748634651327,-151.0,0.000248,7]
[363233608,1748634651337,-272.320063,0.000248,7]
[363233609,1748634651347,-272.320063,0.000248,7]
[363233610,1748634651359,-151.0,0.000248,7]
[363233611,1748634651370,-151.0,0.000248,7]
[363233612,1748634651380,-151.0,0.000248,7]
[363233613,1748634651391,-151.0,0.000248,7]
[363233614,1748634651401,-1739.178541,0.000248,7]
[363233615,1748634651411,-1739.178541,0.000248,7]
[363233616,1748634651422,-151.0,0.000248,7]
[363233617,1748634651432,-151.0,0.000248,7]
[363233618,1748634651443,-151.0,0.000248,7]
[363233619,1748634651454,-151.0,0.000248,7]
[363233620,1748634651465,-5356.375765,0.000248,7]
[363233621,1748634651475,-5356.375765,0.000248,7]
[363233622,1748634651485,-151.0,0.000248,7]
[363233623,1748634651496,-606037.768683,0.000248,3]
[363233624,1748634651506,-151.0,0.000248,7]
[363233625,1748634651516,-361.393696,0.000248,7]
[363233626,1748634651527,-361.393696,0.000248,7]
[363233627,1748634651537,-151.0,0.000248,7]
[363233628,1748634651547,-151.0,0.000248,7]
[363233629,1748634651557,-151.0,0.000248,7]
[363233630,1748634651567,-500.0,0.00024822,2]
[363233631,1748634651577,-300.0,0.00024899,10]
[363233632,1748634651587,-300.0,0.00024899,10]
[363233633,1748634651597,-300.0,0.00024899,10]
[363233634,1748634651607,-300.0,0.00024899,10]
[363233635,1748634651616,-263028.56,0.000249,7]
[363233636,1748634651626,-151.0,0.000249,7]
[363233637,1748634651636,-151.0,0.000249,7]
[363233638,1748634651646,-163.304967,0.000249,7]
[363233639,1748634651656,-163.304967,0.000249,7]
[363233640,1748634651667,-849.75575,0.000249,7]
[363233641,1748634651676,-151.0,0.000249,7]
[363233642,1748634651687,-186.338307,0.000249,7]
[363233643,1748634651697,-186.338307,0.000249,7]
[363233644,1748634651707,-837.362934,0.000249,7]
[363233645,1748634651718,-837.362934,0.000249,7]
[363233646,1748634651728,-151.0,0.000249,7]
[363233647,1748634651740,-151.0,0.000249,7]
[363233648,1748634651751,-151.0,0.000249,7]
[363233649,1748634651762,-151.0,0.000249,7]
[363233650,1748634651772,-151.0,0.000249,7]
[363233651,1748634651782,-262.995413,0.000249,7]
[363233652,1748634651792,-151.0,0.000249,7]
[363233653,1748634651801,-151.0,0.000249,7]
[363233654,1748634651812,-151.0,0.000249,7]
[363233655,1748634651822,-154.121012,0.000249,7]
[363233656,1748634651832,-151.0,0.000249,7]
[363233657,1748634651842,-199.0,0.000249,7]
[363233658,1748634651852,-272.320063,0.000249,7]
[363233659,1748634651862,-272.320063,0.000249,7]
[363233660,1748634651871,-151.0,0.000249,7]
[363233661,1748634651881,-151.0,0.000249,7]
[363233662,1748634651891,-151.0,0.000249,7]
[363233663,1748634651900,-221.895258,0.000249,7]
[363233664,1748634651911,-1739.178541,0.000249,7]
[363233665,1748634651922,-1739.178541,0.000249,7]